fUSD/lending_fUSD_20260517
["ID","MTS","AMOUNT","RATE_DAILY","PERIOD"]
[422494195,1778995845000,-650.0,0.00031178,30]
[422494199,1778995845000,-195.0,0.00031178,30]
[422494214,1778995845000,-290.33345119,0.00031528,7]
[422494205,1778995845000,-1000.0,0.000315,7]
[422494204,1778995845000,-233.43,0.00031486,2]
[422494215,1778995845000,-494.37706743,0.00031528,2]
[422494216,1778995845000,-312.91020074,0.00031528,7]
[422494217,1778995845000,-241.91649627,0.00031528,7]
[422494207,1778995845000,-206.50364102,0.00031509,7]
[422494210,1778995845000,-260.75245567,0.00031528,7]
[422494209,1778995845000,-469.24676777,0.00031528,7]
[422494212,1778995845000,-205.02172777,0.00031528,7]
[422494208,1778995845000,-459.32550718,0.00031528,7]
[422494206,1778995845000,-1991.0161302,0.00031507,30]
[422494211,1778995845000,-262.74937142,0.00031528,7]
[422494186,1778995845000,-277.0,0.00031167,30]
[422494200,1778995845000,-172.0,0.00031239,2]
[422494185,1778995845000,-199.0,0.00031167,30]
[422494159,1778995845000,-518.94461859,0.00030542,3]
[422494191,1778995845000,-152.0,0.00031178,30]
[422494158,1778995845000,-151.0,0.000305,7]
[422494213,1778995845000,-200.97711459,0.00031528,7]
[422494161,1778995845000,-312.83117851,0.0003062,7]
[422494160,1778995845000,-306.21700479,0.0003062,7]
[422494166,1778995845000,-159.24191236,0.00030624,7]
[422494163,1778995845000,-156.45510037,0.0003062,7]
[422494162,1778995845000,-329.58471162,0.0003062,2]
[422494164,1778995845000,-349.97423401,0.0003062,7]
[422494165,1778995845000,-320.25710625,0.0003062,7]
[422494178,1778995845000,-151.0,0.00030894,7]
[422494171,1778995845000,-199.909113,0.00030894,7]
[422494175,1778995845000,-151.0,0.00030894,7]
[422494167,1778995845000,-159.02812847,0.00030624,7]
[422494182,1778995845000,-200.0,0.00031096,2]
[422494170,1778995845000,-161.24934823,0.00030882,2]
[422494172,1778995845000,-199.909113,0.00030894,7]
[422494174,1778995845000,-199.909113,0.00030894,7]
[422494176,1778995845000,-199.909113,0.00030894,7]
[422494169,1778995845000,-450.67982137,0.00030882,2]
[422494173,1778995845000,-151.0,0.00030894,7]
[422494177,1778995845000,-151.0,0.00030894,7]
[422494189,1778995845000,-335.0,0.00031178,30]
[422494188,1778995845000,-190.0,0.00031178,30]
[422494180,1778995845000,-151.0,0.00030894,7]
[422494181,1778995845000,-150.0,0.00031011,2]
[422494190,1778995845000,-178.0,0.00031178,30]
[422494179,1778995845000,-151.0,0.00030894,7]
[422494187,1778995845000,-157.0,0.00031167,30]
[422494168,1778995845000,-536.0,0.00030875,6]
[422494221,1778995845000,-226.69370499,0.00031528,7]
[422494218,1778995845000,-248.78957775,0.00031528,7]
[422494222,1778995845000,-174.00927571,0.00031528,7]
[422494254,1778995845000,-353.42669605,0.00032133,7]
[422494253,1778995845000,-625.66235702,0.00032133,7]
[422494252,1778995845000,-250.23524728,0.00032133,7]
[422494258,1778995845000,-410.04345554,0.00032133,7]
[422494259,1778995845000,-401.95422919,0.00032133,7]
[422494257,1778995845000,-525.49874284,0.00032133,7]
[422494268,1778995845000,-699.94846803,0.00032133,7]
[422494269,1778995845000,-335.07009356,0.00032133,7]
[422494260,1778995845000,-580.66690239,0.00032133,7]
[422494262,1778995845000,-659.16942324,0.00032133,2]
[422494265,1778995845000,-371.59053031,0.00032133,7]
[422494267,1778995845000,-483.83299255,0.00032133,7]
[422494261,1778995845000,-211.76792888,0.00032133,5]
[422494264,1778995845000,-182.76685591,0.00032133,7]
[422494266,1778995845000,-215.41949644,0.00032133,7]
[422494263,1778995845000,-469.36530111,0.00032133,7]
[422494270,1778995845000,-640.51421251,0.00032133,7]
[422494271,1778995845000,-181.41360905,0.00032133,7]
[422494272,1778995845000,-171.0481343,0.00032133,7]
[422494273,1778995845000,-163.2917966,0.00032133,7]
[422494274,1778995845000,-453.38740999,0.00032133,7]
[422494278,1778995845000,-330.42333687,0.00032133,7]
[422494277,1778995845000,-232.7103469,0.00032133,2]
[422494276,1778995845000,-193.3451439,0.00032133,7]
[422494280,1778995845000,-416.606296,0.00032136,7]
[422494275,1778995845000,-305.63074081,0.00032133,7]
[422494220,1778995845000,-480.38565938,0.00031528,7]
[422494281,1778995845000,-222.805672,0.00032136,7]
[422494282,1778995845000,-157.92679824,0.00032136,7]
[422494251,1778995845000,-153.33814862,0.00032133,7]
[422494256,1778995845000,-521.50491134,0.00032133,7]
[422494279,1778995845000,-205.08028382,0.00032136,7]
[422494250,1778995845000,-335.49624851,0.00032133,7]
[422494248,1778995845000,-612.43400957,0.00032133,7]
[422494224,1778995845000,-208.303148,0.00031531,7]
[422494226,1778995845000,-318.48382473,0.00031532,7]
[422494225,1778995845000,-166.95712835,0.00031531,7]
[422494228,1778995845000,-267.47841367,0.00031532,7]
[422494229,1778995845000,-263.2447048,0.00031532,7]
[422494219,1778995845000,-524.96135102,0.00031528,7]
[422494227,1778995845000,-318.05625693,0.00031532,7]
[422494231,1778995845000,-1285.232,0.00031673,2]
[422494238,1778995845000,-160.0,0.00031938,120]
[422494237,1778995845000,-3941.0,0.00031938,120]
[422494239,1778995845000,-165.92,0.00031938,120]
[422494233,1778995845000,-1362.252,0.00031673,2]
[422494241,1778995845000,-215.0785988,0.00032,30]
[422494223,1778995845000,-165.21166844,0.00031528,7]
[422494240,1778995845000,-536.0,0.00031943,7]
[422494249,1778995845000,-253.86404357,0.00032133,7]
[422494255,1778995845000,-263.97509479,0.00032133,2]
[422494245,1778995845000,-299.43206112,0.00032114,7]
[422494247,1778995845000,-413.00728205,0.00032114,7]
[422494230,1778995845000,-284.854,0.00031673,2]
[422494244,1778995845000,-738.33,0.000321,7]
[422494246,1778995845000,-205.71039829,0.00032114,7]
[422494235,1778995845000,-422.36,0.000317,7]
[422494232,1778995845000,-1245.545,0.00031673,2]
[422494242,1778995845000,-157.54,0.0003205,120]
[422494234,1778995845000,-3632.0,0.00031673,2]
[422494243,1778995845000,-200.0,0.00032055,2]
[422494236,1778995845000,-8389.54,0.000317,14]
[422494330,1778995846000,-448.43651,0.00032877,7]
[422494324,1778995846000,-1350.78868134,0.00032842,2]
[422494323,1778995846000,-1014.80766292,0.00032842,2]
[422494320,1778995846000,-800.64276564,0.00032738,7]
[422494311,1778995846000,-227.999123,0.00032539,7]
[422494321,1778995846000,-233.43,0.00032746,2]
[422494319,1778995846000,-874.93558503,0.00032738,7]
[422494312,1778995846000,-227.999123,0.00032539,7]
[422494315,1778995846000,-150.0,0.00032562,2]
[422494310,1778995846000,-536.0,0.00032477,7]
[422494322,1778995846000,-841.41,0.000328,7]
[422494331,1778995846000,-448.43651,0.00032877,7]
[422494332,1778995846000,-448.43651,0.00032877,7]
[422494326,1778995846000,-250.0,0.00032877,120]
[422494327,1778995846000,-186.0,0.00032877,120]
[422494325,1778995846000,-250.0,0.00032877,120]
[422494328,1778995846000,-448.43651,0.00032877,7]
[422494333,1778995846000,-1000.0,0.00032877,120]
[422494334,1778995846000,-1991.0161302,0.00032877,30]
[422494335,1778995846000,-1705.28909246,0.00032937,2]
[422494336,1778995846000,-2000.0,0.00032969,120]
[422494339,1778995846000,-1000.0,0.00033,3]
[422494340,1778995846000,-536.0,0.00033011,8]
[422494337,1778995846000,-53607.2600501,0.00033,2]
[422494338,1778995846000,-208.48490792,0.00033,3]
[422494313,1778995846000,-227.999123,0.00032539,7]
[422494329,1778995846000,-471.59,0.00032877,2]
[422494316,1778995846000,-765.54251197,0.00032738,7]
[422494306,1778995846000,-152.0,0.00032178,30]
[422494307,1778995846000,-195.0,0.00032178,30]
[422494341,1778995846000,-350.0,0.00033014,5]
[422494289,1778995846000,-477.72573709,0.00032137,7]
[422494290,1778995846000,-477.0843854,0.00032137,7]
[422494291,1778995846000,-352.26657949,0.00032137,7]
[422494292,1778995846000,-334.81749219,0.00032137,2]
[422494293,1778995846000,-440.55108259,0.00032137,7]
[422494286,1778995846000,-229.84949372,0.00032137,7]
[422494283,1778995846000,-158.90272887,0.00032136,7]
[422494288,1778995846000,-197.1166675,0.00032137,7]
[422494284,1778995846000,-333.91425669,0.00032136,7]
[422494287,1778995846000,-339.61857189,0.00032137,7]
[422494294,1778995846000,-172.51706958,0.00032137,7]
[422494296,1778995846000,-526.4894096,0.00032137,7]
[422494295,1778995846000,-534.95682734,0.00032137,7]
[422494305,1778995846000,-152.0,0.00032178,30]
[422494303,1778995846000,-335.0,0.00032178,30]
[422494297,1778995846000,-153.0,0.00032167,30]
[422494299,1778995846000,-199.0,0.00032167,30]
[422494302,1778995846000,-190.0,0.00032178,30]
[422494298,1778995846000,-151.0,0.00032167,30]
[422494300,1778995846000,-277.0,0.00032167,30]
[422494304,1778995846000,-178.0,0.00032178,30]
[422494301,1778995846000,-157.0,0.00032167,30]
[422494308,1778995846000,-490.0,0.0003221,5]
[422494317,1778995846000,-782.07794628,0.00032738,7]
[422494318,1778995846000,-823.96177905,0.00032738,2]
[422494309,1778995846000,-1000.0,0.00032406,6]
[422494314,1778995846000,-227.999123,0.00032539,7]
[422494342,1778995846000,-2267.80707265,0.00033084,2]
[422494285,1778995846000,-497.5791555,0.00032136,7]
[422494348,1778995846000,-422.36,0.000331,30]
[422494375,1778995846000,-841.41,0.000338,30]
[422494377,1778995846000,-1340.0,0.00033828,5]
[422494376,1778995846000,-876.0,0.00033828,5]
[422494380,1778995846000,-233.43,0.00034005,2]
[422494382,1778995846000,-150.0,0.00034077,7]
[422494391,1778995846000,-150.0,0.00034077,7]
[422494381,1778995846000,-150.0,0.00034077,7]
[422494384,1778995846000,-150.19263054,0.00034077,7]
[422494383,1778995846000,-150.0,0.00034077,7]
[422494385,1778995846000,-150.0,0.00034077,7]
[422494387,1778995846000,-150.0,0.00034077,7]
[422494386,1778995846000,-150.0,0.00034077,7]
[422494389,1778995846000,-150.0,0.00034077,7]
[422494390,1778995846000,-150.0,0.00034077,7]
[422494388,1778995846000,-150.0,0.00034077,7]
[422494392,1778995846000,-1000.0,0.00034078,9]
[422494401,1778995846000,-335.0,0.00034178,30]
[422494402,1778995846000,-178.0,0.00034178,30]
[422494403,1778995846000,-152.0,0.00034178,30]
[422494400,1778995846000,-190.0,0.00034178,30]
[422494393,1778995846000,-536.0,0.00034079,9]
[422494394,1778995846000,-150.0,0.00034165,7]
[422494396,1778995846000,-151.0,0.00034167,30]
[422494395,1778995846000,-153.0,0.00034167,30]
[422494397,1778995846000,-199.0,0.00034167,30]
[422494398,1778995846000,-277.0,0.00034167,30]
[422494344,1778995846000,-7944.53389953,0.00033084,2]
[422494372,1778995846000,-1049.92270204,0.00033646,7]
[422494374,1778995846000,-738.33,0.000337,7]
[422494399,1778995846000,-157.0,0.00034167,30]
[422494370,1778995846000,-938.49353553,0.00033646,7]
[422494373,1778995846000,-994.93517081,0.00033646,7]
[422494343,1778995846000,-423.83139421,0.00033084,2]
[422494346,1778995846000,-3861.91,0.00033091,34]
[422494345,1778995846000,-1000.0,0.00033088,34]
[422494353,1778995846000,-277.0,0.00033167,30]
[422494347,1778995846000,-260.275,0.00033091,34]
[422494350,1778995846000,-153.0,0.00033167,30]
[422494352,1778995846000,-199.0,0.00033167,30]
[422494351,1778995846000,-151.0,0.00033167,30]
[422494366,1778995846000,-195.0,0.00033178,30]
[422494355,1778995846000,-3000.0,0.00033167,30]
[422494365,1778995846000,-152.0,0.00033178,30]
[422494354,1778995846000,-157.0,0.00033167,30]
[422494361,1778995846000,-190.0,0.00033178,30]
[422494349,1778995846000,-8389.54,0.000331,14]
[422494359,1778995846000,-1050.0,0.00033167,30]
[422494358,1778995846000,-2662.0,0.00033167,30]
[422494379,1778995846000,-350.0,0.00033973,5]
[422494367,1778995846000,-1000.0,0.00033451,15]
[422494371,1778995846000,-988.75413486,0.00033646,2]
[422494368,1778995846000,-300.0,0.00033452,15]
[422494378,1778995846000,-180.62151535,0.00033884,11]
[422494369,1778995846000,-536.0,0.00033545,9]
[422494364,1778995846000,-152.0,0.00033178,30]
[422494362,1778995846000,-335.0,0.00033178,30]
[422494360,1778995846000,-928.0,0.00033167,30]
[422494356,1778995846000,-3000.0,0.00033167,30]
[422494357,1778995846000,-3000.0,0.00033167,30]
[422494363,1778995846000,-178.0,0.00033178,30]
[422494452,1778995847000,-210.95,0.00034704,14]
[422494442,1778995847000,-150.0,0.00034582,7]
[422494440,1778995847000,-150.0,0.00034517,7]
[422494430,1778995847000,-172.12921805,0.00034303,3]
[422494436,1778995847000,-150.0,0.00034392,7]
[422494437,1778995847000,-150.0,0.00034392,7]
[422494432,1778995847000,-290.24787072,0.00034303,3]
[422494429,1778995847000,-308.25139252,0.00034302,3]
[422494454,1778995847000,-150.0,0.00034708,7]
[422494439,1778995847000,-150.0,0.00034429,7]
[422494441,1778995847000,-150.0,0.0003455,7]
[422494438,1778995847000,-150.0,0.00034392,7]
[422494449,1778995847000,-3632.0,0.00034673,2]
[422494451,1778995847000,-210.95,0.00034704,14]
[422494443,1778995847000,-150.0,0.00034605,7]
[422494450,1778995847000,-150.0,0.00034693,7]
[422494448,1778995847000,-1354.0,0.00034673,2]
[422494444,1778995847000,-536.0,0.00034613,10]
[422494445,1778995847000,-150.0,0.00034673,2]
[422494447,1778995847000,-1223.0,0.00034673,2]
[422494446,1778995847000,-1270.0,0.00034673,2]
[422494455,1778995847000,-150.0,0.00034708,7]
[422494458,1778995847000,-1500.0,0.00034795,2]
[422494435,1778995847000,-150.0,0.00034341,7]
[422494466,1778995847000,-841.41,0.00035,30]
[422494453,1778995847000,-150.0,0.00034708,7]
[422494434,1778995847000,-150.0,0.00034329,7]
[422494411,1778995847000,-1991.0161302,0.00034247,30]
[422494431,1778995847000,-188.51687221,0.00034303,3]
[422494457,1778995847000,-150.0,0.00034781,7]
[422494404,1778995847000,-152.0,0.00034178,30]
[422494405,1778995847000,-195.0,0.00034178,30]
[422494406,1778995847000,-490.0,0.00034182,7]
[422494407,1778995847000,-150.0,0.0003419,2]
[422494409,1778995847000,-8389.54,0.000342,14]
[422494416,1778995847000,-500.0,0.00034287,60]
[422494408,1778995847000,-422.36,0.000342,30]
[422494410,1778995847000,-1000.0,0.00034247,120]
[422494412,1778995847000,-150.0,0.00034253,7]
[422494413,1778995847000,-500.0,0.00034287,60]
[422494414,1778995847000,-500.0,0.00034287,60]
[422494415,1778995847000,-500.0,0.00034287,60]
[422494428,1778995847000,-308.25139252,0.00034302,3]
[422494418,1778995847000,-500.0,0.00034287,60]
[422494417,1778995847000,-500.0,0.00034287,60]
[422494419,1778995847000,-500.0,0.00034287,60]
[422494422,1778995847000,-500.0,0.00034287,60]
[422494420,1778995847000,-500.0,0.00034287,60]
[422494421,1778995847000,-500.0,0.00034287,60]
[422494423,1778995847000,-500.0,0.00034287,60]
[422494424,1778995847000,-500.0,0.00034287,60]
[422494425,1778995847000,-500.0,0.00034287,60]
[422494427,1778995847000,-537.5987461,0.00034287,60]
[422494426,1778995847000,-500.0,0.00034287,60]
[422494433,1778995847000,-290.24787073,0.00034303,3]
[422494456,1778995847000,-150.0,0.00034708,7]
[422494459,1778995847000,-150.0,0.00034834,7]
[422494504,1778995847000,-500.0,0.00035334,90]
[422494492,1778995847000,-277.0,0.00035167,30]
[422494491,1778995847000,-199.0,0.00035167,30]
[422494493,1778995847000,-157.0,0.00035167,30]
[422494494,1778995847000,-190.0,0.00035178,30]
[422494497,1778995847000,-152.0,0.00035178,30]
[422494496,1778995847000,-178.0,0.00035178,30]
[422494500,1778995847000,-1500.0,0.000352,7]
[422494499,1778995847000,-195.0,0.00035178,30]
[422494502,1778995847000,-150.0,0.00035309,7]
[422494501,1778995847000,-150.0,0.00035221,7]
[422494498,1778995847000,-152.0,0.00035178,30]
[422494503,1778995847000,-500.0,0.00035334,90]
[422494505,1778995847000,-150.0,0.00035339,7]
[422494506,1778995847000,-150.0,0.00035339,7]
[422494507,1778995847000,-150.0,0.00035339,7]
[422494510,1778995847000,-150.0,0.00035398,7]
[422494513,1778995847000,-152.0,0.00035525,7]
[422494511,1778995847000,-150.0,0.00035486,7]
[422494512,1778995847000,-150.0,0.00035497,7]
[422494514,1778995847000,-150.0,0.00035574,7]
[422494509,1778995847000,-150.0,0.00035339,7]
[422494508,1778995847000,-150.0,0.00035339,7]
[422494516,1778995847000,-150.0,0.00035591,7]
[422494515,1778995847000,-1350.64566011,0.00035581,4]
[422494467,1778995847000,-215.0785988,0.00035,3]
[422494490,1778995847000,-151.0,0.00035167,30]
[422494489,1778995847000,-153.0,0.00035167,30]
[422494495,1778995847000,-335.0,0.00035178,30]
[422494485,1778995847000,-150.0,0.00035045,7]
[422494460,1778995847000,-150.0,0.00034834,7]
[422494461,1778995847000,-165.92,0.00034841,120]
[422494465,1778995847000,-1000.0,0.00034999,90]
[422494462,1778995847000,-150.0,0.00034869,7]
[422494464,1778995847000,-150.0,0.00034957,7]
[422494463,1778995847000,-350.0,0.00034931,5]
[422494469,1778995847000,-1153.54649067,0.00035008,2]
[422494480,1778995847000,-2000.0,0.00035021,2]
[422494488,1778995847000,-536.0,0.00035147,10]
[422494478,1778995847000,-2000.0,0.00035021,2]
[422494481,1778995847000,-150.0,0.00035023,7]
[422494470,1778995847000,-1160.75769927,0.00035008,7]
[422494473,1778995847000,-2000.0,0.00035021,2]
[422494479,1778995847000,-2000.0,0.00035021,2]
[422494471,1778995847000,-2000.0,0.00035021,2]
[422494477,1778995847000,-2000.0,0.00035021,2]
[422494484,1778995847000,-150.0,0.00035023,7]
[422494486,1778995847000,-150.0,0.00035086,7]
[422494483,1778995847000,-150.0,0.00035023,7]
[422494482,1778995847000,-150.0,0.00035023,7]
[422494487,1778995847000,-150.0,0.00035133,7]
[422494472,1778995847000,-2000.0,0.00035021,2]
[422494474,1778995847000,-2000.0,0.00035021,2]
[422494475,1778995847000,-2000.0,0.00035021,2]
[422494468,1778995847000,-1094.90912479,0.00035008,7]
[422494476,1778995847000,-2000.0,0.00035021,2]
[422494559,1778995848000,-283.3,0.000359,120]
[422494557,1778995848000,-350.0,0.0003589,5]
[422494565,1778995848000,-150.0,0.0003597,7]
[422494554,1778995848000,-150.0,0.0003575,7]
[422494555,1778995848000,-150.0,0.00035838,7]
[422494550,1778995848000,-536.0,0.00035681,11]
[422494552,1778995848000,-152.0,0.00035727,7]
[422494547,1778995848000,-150.0,0.00035662,7]
[422494546,1778995848000,-150.0,0.00035654,7]
[422494544,1778995848000,-150.0,0.00035654,7]
[422494556,1778995848000,-150.0,0.00035844,7]
[422494553,1778995848000,-152.0,0.00035727,7]
[422494558,1778995848000,-150.0,0.00035899,2]
[422494568,1778995848000,-150.0,0.0003597,7]
[422494562,1778995848000,-1705.28909246,0.00035925,2]
[422494561,1778995848000,-8389.54,0.000359,14]
[422494563,1778995848000,-150.0,0.00035926,7]
[422494564,1778995848000,-150.0,0.0003597,7]
[422494566,1778995848000,-150.0,0.0003597,7]
[422494567,1778995848000,-150.0,0.0003597,7]
[422494569,1778995848000,-150.0,0.0003597,7]
[422494572,1778995848000,-206.783807,0.00036,12]
[422494573,1778995848000,-150.0,0.00036014,7]
[422494570,1778995848000,-208.48490792,0.00036,120]
[422494571,1778995848000,-208.48490792,0.00036,10]
[422494551,1778995848000,-738.33,0.000357,7]
[422494560,1778995848000,-422.36,0.000359,30]
[422494548,1778995848000,-152.0,0.00035667,7]
[422494518,1778995848000,-152.0,0.00035596,7]
[422494545,1778995848000,-150.0,0.00035654,7]
[422494517,1778995848000,-150.0,0.00035591,7]
[422494519,1778995848000,-1991.0161302,0.00035616,30]
[422494520,1778995848000,-1260.18257869,0.00035616,60]
[422494522,1778995848000,-1000.0,0.00035616,10]
[422494530,1778995848000,-1000.0,0.00035616,10]
[422494521,1778995848000,-1000.0,0.00035616,10]
[422494523,1778995848000,-1000.0,0.00035616,10]
[422494525,1778995848000,-1000.0,0.00035616,10]
[422494524,1778995848000,-1000.0,0.00035616,10]
[422494526,1778995848000,-1000.0,0.00035616,10]
[422494527,1778995848000,-1000.0,0.00035616,10]
[422494528,1778995848000,-1000.0,0.00035616,10]
[422494549,1778995848000,-152.0,0.00035667,7]
[422494529,1778995848000,-1000.0,0.00035616,10]
[422494533,1778995848000,-1000.0,0.00035616,10]
[422494532,1778995848000,-1000.0,0.00035616,10]
[422494542,1778995848000,-151.0,0.00035616,7]
[422494534,1778995848000,-1000.0,0.00035616,10]
[422494537,1778995848000,-1000.0,0.00035616,10]
[422494540,1778995848000,-631.0,0.00035616,10]
[422494539,1778995848000,-1000.0,0.00035616,10]
[422494535,1778995848000,-1000.0,0.00035616,10]
[422494536,1778995848000,-1000.0,0.00035616,10]
[422494538,1778995848000,-1000.0,0.00035616,10]
[422494541,1778995848000,-303.5288317,0.00035616,2]
[422494543,1778995848000,-471.59,0.00035616,2]
[422494531,1778995848000,-1000.0,0.00035616,10]
[422494577,1778995848000,-319.0,0.00036072,30]
[422494631,1778995848000,-893.8052833,0.00036305,2]
[422494574,1778995848000,-512.398822,0.00036034,120]
[422494612,1778995848000,-300.0,0.00036305,2]
[422494609,1778995848000,-300.0,0.00036305,2]
[422494603,1778995848000,-150.0,0.00036285,7]
[422494608,1778995848000,-300.0,0.00036305,2]
[422494613,1778995848000,-300.0,0.00036305,2]
[422494610,1778995848000,-300.0,0.00036305,2]
[422494615,1778995848000,-300.0,0.00036305,2]
[422494625,1778995848000,-300.0,0.00036305,2]
[422494616,1778995848000,-300.0,0.00036305,2]
[422494617,1778995848000,-300.0,0.00036305,2]
[422494614,1778995848000,-370.71883626,0.00036305,2]
[422494619,1778995848000,-492.91797782,0.00036305,2]
[422494607,1778995848000,-300.0,0.00036305,2]
[422494623,1778995848000,-300.0,0.00036305,2]
[422494624,1778995848000,-604.73492277,0.00036305,2]
[422494622,1778995848000,-300.0,0.00036305,2]
[422494618,1778995848000,-300.0,0.00036305,2]
[422494621,1778995848000,-300.0,0.00036305,2]
[422494627,1778995848000,-300.0,0.00036305,2]
[422494626,1778995848000,-300.0,0.00036305,2]
[422494633,1778995848000,-300.0,0.00036305,2]
[422494629,1778995848000,-561.28715254,0.00036305,2]
[422494632,1778995848000,-726.3731759,0.00036305,2]
[422494634,1778995848000,-301.92446648,0.00036305,2]
[422494630,1778995848000,-1067.39759447,0.00036305,2]
[422494575,1778995848000,-717.09996679,0.00036048,2]
[422494620,1778995848000,-300.0,0.00036305,2]
[422494611,1778995848000,-300.0,0.00036305,2]
[422494628,1778995848000,-527.9795525,0.00036305,2]
[422494606,1778995848000,-300.0,0.00036304,10]
[422494605,1778995848000,-366.3609505,0.000363,2]
[422494579,1778995848000,-150.0,0.00036096,7]
[422494589,1778995848000,-335.0,0.00036178,30]
[422494582,1778995848000,-10603.0,0.00036164,2]
[422494580,1778995848000,-150.0,0.00036102,7]
[422494578,1778995848000,-621.0,0.00036072,30]
[422494581,1778995848000,-490.0,0.00036153,30]
[422494587,1778995848000,-157.0,0.00036167,30]
[422494584,1778995848000,-153.0,0.00036167,30]
[422494585,1778995848000,-199.0,0.00036167,30]
[422494583,1778995848000,-152.0,0.00036164,2]
[422494586,1778995848000,-277.0,0.00036167,30]
[422494588,1778995848000,-190.0,0.00036178,30]
[422494576,1778995848000,-203.0,0.00036072,30]
[422494594,1778995848000,-298.54,0.00036186,10]
[422494604,1778995848000,-321.79368421,0.000363,2]
[422494599,1778995848000,-536.0,0.00036214,11]
[422494602,1778995848000,-150.0,0.00036285,7]
[422494597,1778995848000,-1000.0,0.00036199,26]
[422494590,1778995848000,-178.0,0.00036178,30]
[422494600,1778995848000,-150.0,0.00036278,7]
[422494596,1778995848000,-2500.0,0.00036194,10]
[422494598,1778995848000,-1000.0,0.00036213,11]
[422494595,1778995848000,-150.0,0.0003619,7]
[422494593,1778995848000,-195.0,0.00036178,30]
[422494592,1778995848000,-152.0,0.00036178,30]
[422494591,1778995848000,-152.0,0.00036178,30]
[422494601,1778995848000,-150.0,0.00036285,7]
[422494673,1778995849000,-300.0,0.00036305,2]
[422494671,1778995849000,-484.30212364,0.00036305,2]
[422494670,1778995849000,-300.0,0.00036305,2]
[422494668,1778995849000,-300.0,0.00036305,2]
[422494675,1778995849000,-1128.03359875,0.00036305,2]
[422494665,1778995849000,-452.10208933,0.00036305,2]
[422494667,1778995849000,-300.0,0.00036305,2]
[422494674,1778995849000,-300.0,0.00036305,2]
[422494669,1778995849000,-300.0,0.00036305,2]
[422494666,1778995849000,-300.0,0.00036305,2]
[422494663,1778995849000,-577.47815809,0.00036305,2]
[422494672,1778995849000,-309.96996065,0.00036305,2]
[422494679,1778995849000,-1095.24427681,0.00036305,2]
[422494677,1778995849000,-300.0,0.00036305,2]
[422494676,1778995849000,-300.0,0.00036305,2]
[422494678,1778995849000,-300.0,0.00036305,2]
[422494686,1778995849000,-300.0,0.00036305,2]
[422494682,1778995849000,-300.0,0.00036305,2]
[422494684,1778995849000,-300.0,0.00036305,2]
[422494680,1778995849000,-300.0,0.00036305,2]
[422494685,1778995849000,-300.0,0.00036305,2]
[422494683,1778995849000,-300.0,0.00036305,2]
[422494681,1778995849000,-300.0,0.00036305,2]
[422494689,1778995849000,-300.0,0.00036305,2]
[422494664,1778995849000,-300.0,0.00036305,2]
[422494687,1778995849000,-300.0,0.00036305,2]
[422494661,1778995849000,-464.05309097,0.00036305,2]
[422494648,1778995849000,-376.0316063,0.00036305,2]
[422494660,1778995849000,-300.0,0.00036305,2]
[422494693,1778995849000,-492.91797782,0.00036305,2]
[422494637,1778995849000,-300.0,0.00036305,2]
[422494635,1778995849000,-300.0,0.00036305,2]
[422494638,1778995849000,-300.0,0.00036305,2]
[422494636,1778995849000,-300.70672347,0.00036305,2]